[Event "Titled Tuesday Blitz December 27 Early 2022"]
[White "Yuan, Qingyu"]
[Black "Silva, Miguel Antonio Neto"]
[WhiteFideId "8609772"]
[BlackFideId "1911929"]
[WhiteElo "2373"]
[BlackElo "2204"]
[Result "1-0"]
[Round "04"]
[TimeControl "180+2"]
[Date "2022.12.27"]
[WhiteClock "0:00:10"]
[BlackClock "0:00:12"]

1. e4 {[%clk 0:03:00]}  c5 {[%clk 0:02:58]} 2. Nf3 {[%clk 0:03:01]}  d6 {[%clk 0:02:58]} 3. d4 {[%clk 0:03:00]}  cxd4 {[%clk 0:02:59]} 4. Nxd4 {[%clk 0:03:01]}  Nf6 {[%clk 0:02:59]} 5. Nc3 {[%clk 0:03:01]}  a6 {[%clk 0:02:59]} 6. Rg1 {[%clk 0:03:02]}  e5 {[%clk 0:02:51]} 7. Nb3 {[%clk 0:03:01]}  h5 {[%clk 0:02:51]} 8. Be3 {[%clk 0:03:01]}  Be6 {[%clk 0:02:48]} 9. h3 {[%clk 0:03:01]}  Qc7 {[%clk 0:02:43]} 10. g4 {[%clk 0:02:49]}  hxg4 {[%clk 0:02:42]} 11. hxg4 {[%clk 0:02:50]}  Be7 {[%clk 0:02:36]} 12. g5 {[%clk 0:02:49]}  Nh5 {[%clk 0:02:23]} 13. Rh1 {[%clk 0:02:41]}  g6 {[%clk 0:02:17]} 14. Be2 {[%clk 0:02:41]}  Nd7 {[%clk 0:02:16]} 15. Bxh5 {[%clk 0:02:42]}  gxh5 {[%clk 0:02:16]} 16. Rxh5 {[%clk 0:02:42]}  O-O-O {[%clk 0:02:15]} 17. Qf3 {[%clk 0:02:34]}  Nb6 {[%clk 0:02:05]} 18. O-O-O {[%clk 0:02:24]}  Nc4 {[%clk 0:02:04]} 19. Rdh1 {[%clk 0:02:17]}  Rhg8 {[%clk 0:01:55]} 20. Nd5 {[%clk 0:01:59]}  Bxd5 {[%clk 0:01:38]} 21. exd5 {[%clk 0:01:59]}  Kb8 {[%clk 0:01:31]} 22. Kb1 {[%clk 0:01:38]}  Rc8 {[%clk 0:01:26]} 23. Bc1 {[%clk 0:01:17]}  a5 {[%clk 0:00:53]} 24. c3 {[%clk 0:01:00]}  a4 {[%clk 0:00:49]} 25. Nd2 {[%clk 0:00:59]}  a3 {[%clk 0:00:36]} 26. Qxf7 {[%clk 0:00:34]}  axb2 {[%clk 0:00:29]} 27. Nxc4 {[%clk 0:00:27]}  bxc1=Q+ {[%clk 0:00:26]} 28. Rxc1 {[%clk 0:00:27]}  Bxg5 {[%clk 0:00:18]} 29. Qxc7+ {[%clk 0:00:25]}  Rxc7 {[%clk 0:00:17]} 30. Ne3 {[%clk 0:00:17]}  Bxe3 {[%clk 0:00:17]} 31. fxe3 {[%clk 0:00:18]}  Rg3 {[%clk 0:00:17]} 32. Rh6 {[%clk 0:00:18]}  Rxe3 {[%clk 0:00:17]} 33. Rxd6 {[%clk 0:00:17]}  Rexc3 {[%clk 0:00:17]} 34. Re1 {[%clk 0:00:16]}  Rd3 {[%clk 0:00:13]} 35. Rxe5 {[%clk 0:00:13]}  Rd1+ {[%clk 0:00:13]} 36. Kb2 {[%clk 0:00:14]}  Rd2+ {[%clk 0:00:14]} 37. Kb3 {[%clk 0:00:14]}  Rd3+ {[%clk 0:00:15]} 38. Kb4 {[%clk 0:00:14]}  Rd2 {[%clk 0:00:15]} 39. Kb3 {[%clk 0:00:10]}  Rd3+ {[%clk 0:00:15]} 40. Kb4 {[%clk 0:00:10]}  Rd2 {[%clk 0:00:15]} 41. a3 {[%clk 0:00:10]}  Rb2+ {[%clk 0:00:15]} 42. Ka4 {[%clk 0:00:09]}  Rc4+ {[%clk 0:00:14]} 43. Ka5 {[%clk 0:00:10]}  b6+ {[%clk 0:00:13]} 44. Rxb6+ {[%clk 0:00:09]}  Rxb6 {[%clk 0:00:13]} 45. Kxb6 {[%clk 0:00:10]}  Ra4 {[%clk 0:00:12]} 46. Re8# {[%clk 0:00:10]} 1-0


[Site "https://www.chess.com"]

[Event "Titled Tuesday Blitz December 27 Early 2022"]
[White "Alex_Sahakyan2006"]
[Black "Bilych, Olexiy"]
[BlackFideId "14156504"]
[WhiteElo "2629"]
[BlackElo "2441"]
[Result "0-1"]
[Round "05"]
[TimeControl "180+2"]
[Date "2022.12.27"]
[WhiteClock "0:00:01"]
[BlackClock "0:00:49"]

1. d4 {[%clk 0:03:00]}  Nf6 {[%clk 0:02:59]} 2. Nf3 {[%clk 0:03:00]}  d5 {[%clk 0:02:59]} 3. c4 {[%clk 0:03:00]}  e6 {[%clk 0:02:58]} 4. Nc3 {[%clk 0:02:59]}  c5 {[%clk 0:02:56]} 5. e3 {[%clk 0:02:56]}  Nc6 {[%clk 0:02:53]} 6. a3 {[%clk 0:02:56]}  dxc4 {[%clk 0:02:53]} 7. Bxc4 {[%clk 0:02:56]}  a6 {[%clk 0:02:54]} 8. dxc5 {[%clk 0:02:46]}  Qxd1+ {[%clk 0:02:48]} 9. Nxd1 {[%clk 0:02:47]}  Bxc5 {[%clk 0:02:48]} 10. b4 {[%clk 0:02:47]}  Be7 {[%clk 0:02:46]} 11. Bb2 {[%clk 0:02:48]}  b6 {[%clk 0:02:39]} 12. O-O {[%clk 0:01:18]}  Bb7 {[%clk 0:02:04]} 13. Nd4 {[%clk 0:01:08]}  O-O {[%clk 0:01:56]} 14. Be2 {[%clk 0:01:02]}  Nxd4 {[%clk 0:01:48]} 15. Bxd4 {[%clk 0:01:03]}  Nd7 {[%clk 0:01:47]} 16. f3 {[%clk 0:00:42]}  Rfc8 {[%clk 0:01:44]} 17. e4 {[%clk 0:00:38]}  a5 {[%clk 0:01:33]} 18. Bb5 {[%clk 0:00:34]}  Bc6 {[%clk 0:01:29]} 19. Bxc6 {[%clk 0:00:32]}  Rxc6 {[%clk 0:01:30]} 20. bxa5 {[%clk 0:00:18]}  Rxa5 {[%clk 0:01:31]} 21. Ne3 {[%clk 0:00:17]}  Rxa3 {[%clk 0:01:19]} 22. Rxa3 {[%clk 0:00:16]}  Bxa3 {[%clk 0:01:20]} 23. Ra1 {[%clk 0:00:16]}  Bf8 {[%clk 0:01:12]} 24. Ra7 {[%clk 0:00:15]}  Nc5 {[%clk 0:01:06]} 25. Ng4 {[%clk 0:00:12]}  Nb3 {[%clk 0:01:02]} 26. Be3 {[%clk 0:00:07]}  f6 {[%clk 0:00:55]} 27. Rb7 {[%clk 0:00:04]}  Nc5 {[%clk 0:00:52]} 28. Rb8 {[%clk 0:00:02]}  Kf7 {[%clk 0:00:51]} 29. Kf2 {[%clk 0:00:01]}  h5 {[%clk 0:00:49]} 0-1


[Site "https://www.chess.com"]

[Event "Titled Tuesday Blitz December 27 Early 2022"]
[White "Andreev, Eduard"]
[Black "Weetik, Vjacheslav"]
[WhiteFideId "14103400"]
[BlackFideId "4153472"]
[WhiteElo "2413"]
[BlackElo "2423"]
[Result "0-1"]
[Round "05"]
[TimeControl "180+2"]
[Date "2022.12.27"]
[WhiteClock "0:00:21"]
[BlackClock "0:00:10"]

1. e4 {[%clk 0:03:00]}  c6 {[%clk 0:03:00]} 2. d4 {[%clk 0:03:00]}  d5 {[%clk 0:03:00]} 3. Nd2 {[%clk 0:03:01]}  dxe4 {[%clk 0:03:00]} 4. Nxe4 {[%clk 0:03:02]}  Bf5 {[%clk 0:02:58]} 5. Ng3 {[%clk 0:03:02]}  Bg6 {[%clk 0:02:58]} 6. Nf3 {[%clk 0:03:02]}  e6 {[%clk 0:02:58]} 7. Ne5 {[%clk 0:02:54]}  Nd7 {[%clk 0:02:54]} 8. Bf4 {[%clk 0:02:33]}  Nxe5 {[%clk 0:02:48]} 9. Bxe5 {[%clk 0:02:30]}  Nf6 {[%clk 0:02:33]} 10. Bd3 {[%clk 0:02:23]}  Be7 {[%clk 0:02:18]} 11. O-O {[%clk 0:02:17]}  O-O {[%clk 0:02:16]} 12. Re1 {[%clk 0:02:07]}  Qb6 {[%clk 0:02:12]} 13. Rb1 {[%clk 0:01:54]}  c5 {[%clk 0:02:03]} 14. Bxg6 {[%clk 0:01:49]}  hxg6 {[%clk 0:02:03]} 15. c3 {[%clk 0:01:43]}  Rfd8 {[%clk 0:01:57]} 16. Qf3 {[%clk 0:01:43]}  Rac8 {[%clk 0:01:53]} 17. h3 {[%clk 0:01:41]}  Qc6 {[%clk 0:01:52]} 18. Ne4 {[%clk 0:01:30]}  Nd7 {[%clk 0:01:38]} 19. Nxc5 {[%clk 0:01:13]}  Qxf3 {[%clk 0:01:33]} 20. gxf3 {[%clk 0:01:14]}  Bxc5 {[%clk 0:01:08]} 21. dxc5 {[%clk 0:01:10]}  Nxc5 {[%clk 0:01:09]} 22. Bd4 {[%clk 0:01:09]}  Rd5 {[%clk 0:01:03]} 23. Re5 {[%clk 0:00:58]}  Rxe5 {[%clk 0:00:58]} 24. Bxe5 {[%clk 0:00:59]}  Rd8 {[%clk 0:00:45]} 25. Bd4 {[%clk 0:00:58]}  b6 {[%clk 0:00:44]} 26. Kf1 {[%clk 0:00:46]}  f6 {[%clk 0:00:39]} 27. Ke2 {[%clk 0:00:43]}  Na4 {[%clk 0:00:31]} 28. b3 {[%clk 0:00:40]}  Rxd4 {[%clk 0:00:29]} 29. bxa4 {[%clk 0:00:38]}  Rxa4 {[%clk 0:00:29]} 30. Rb2 {[%clk 0:00:37]}  g5 {[%clk 0:00:20]} 31. Rd2 {[%clk 0:00:31]}  Kf7 {[%clk 0:00:20]} 32. Kf1 {[%clk 0:00:29]}  Kg6 {[%clk 0:00:20]} 33. Kg2 {[%clk 0:00:29]}  e5 {[%clk 0:00:20]} 34. Kg3 {[%clk 0:00:27]}  Kf5 {[%clk 0:00:20]} 35. Rb2 {[%clk 0:00:25]}  Ra3 {[%clk 0:00:17]} 36. Rc2 {[%clk 0:00:24]}  b5 {[%clk 0:00:17]} 37. Kg2 {[%clk 0:00:24]}  a6 {[%clk 0:00:16]} 38. Kh2 {[%clk 0:00:21]}  Kf4 {[%clk 0:00:16]} 39. Kg2 {[%clk 0:00:22]}  f5 {[%clk 0:00:16]} 40. c4 {[%clk 0:00:21]}  b4 {[%clk 0:00:09]} 41. c5 {[%clk 0:00:20]}  Rc3 {[%clk 0:00:09]} 42. Rxc3 {[%clk 0:00:19]}  bxc3 {[%clk 0:00:09]} 43. c6 {[%clk 0:00:19]}  c2 {[%clk 0:00:10]} 44. c7 {[%clk 0:00:20]}  c1=Q {[%clk 0:00:10]} 45. c8=Q {[%clk 0:00:21]}  Qxc8 {[%clk 0:00:10]} 0-1


[Site "https://www.chess.com"]

[Event "Titled Tuesday Blitz December 27 Early 2022"]
[White "Antonio, Jorge Carlos"]
[Black "Shubenkova, Veronika"]
[WhiteFideId "113190"]
[BlackFideId "44124040"]
[WhiteElo "2277"]
[BlackElo "1960"]
[Result "0-1"]
[Round "05"]
[TimeControl "180+2"]
[Date "2022.12.27"]
[WhiteClock "0:01:11"]
[BlackClock "0:02:18"]

1. d4 {[%clk 0:03:00]}  d5 {[%clk 0:02:59]} 2. Nf3 {[%clk 0:03:00]}  e6 {[%clk 0:03:00]} 3. Bf4 {[%clk 0:03:00]}  Bd6 {[%clk 0:03:00]} 4. e3 {[%clk 0:03:00]}  Nf6 {[%clk 0:02:59]} 5. Ne5 {[%clk 0:02:59]}  O-O {[%clk 0:02:59]} 6. Bd3 {[%clk 0:02:59]}  Nbd7 {[%clk 0:02:59]} 7. c3 {[%clk 0:02:59]}  Qe7 {[%clk 0:02:58]} 8. Nd2 {[%clk 0:02:58]}  c5 {[%clk 0:02:58]} 9. h4 {[%clk 0:02:58]}  Ne8 {[%clk 0:02:53]} 10. Qf3 {[%clk 0:02:32]}  f5 {[%clk 0:02:53]} 11. O-O-O {[%clk 0:02:27]}  Nef6 {[%clk 0:02:52]} 12. Qe2 {[%clk 0:02:20]}  a5 {[%clk 0:02:29]} 13. f3 {[%clk 0:02:14]}  a4 {[%clk 0:02:27]} 14. Rdg1 {[%clk 0:02:11]}  a3 {[%clk 0:02:26]} 15. b3 {[%clk 0:02:10]}  Nh5 {[%clk 0:02:21]} 16. g4 {[%clk 0:02:03]}  Nxf4 {[%clk 0:02:21]} 17. exf4 {[%clk 0:02:02]}  cxd4 {[%clk 0:02:21]} 18. cxd4 {[%clk 0:02:00]}  Qd8 {[%clk 0:02:21]} 19. Qe3 {[%clk 0:01:49]}  Qc7+ {[%clk 0:02:20]} 20. Kb1 {[%clk 0:01:48]}  Qc3 {[%clk 0:02:20]} 21. Ndc4 {[%clk 0:01:17]}  dxc4 {[%clk 0:02:19]} 22. Rf1 {[%clk 0:01:11]}  Qb2# {[%clk 0:02:18]} 0-1


[Site "https://www.chess.com"]

[Event "Titled Tuesday Blitz December 27 Early 2022"]
[White "Ardila, Oscar Humberto"]
[Black "Vovk, Orest"]
[WhiteFideId "4404742"]
[BlackFideId "14113490"]
[WhiteElo "1982"]
[BlackElo "2315"]
[Result "0-1"]
[Round "05"]
[TimeControl "180+2"]
[Date "2022.12.27"]
[WhiteClock "0:00:36"]
[BlackClock "0:02:21"]

1. d4 {[%clk 0:02:59]}  h6 {[%clk 0:02:57]} 2. c4 {[%clk 0:02:59]}  g5 {[%clk 0:02:57]} 3. Nc3 {[%clk 0:02:59]}  Bg7 {[%clk 0:02:56]} 4. h4 {[%clk 0:02:58]}  c5 {[%clk 0:02:56]} 5. e3 {[%clk 0:02:55]}  Nc6 {[%clk 0:02:54]} 6. d5 {[%clk 0:02:53]}  Ne5 {[%clk 0:02:53]} 7. hxg5 {[%clk 0:02:50]}  d6 {[%clk 0:02:49]} 8. Nf3 {[%clk 0:02:49]}  hxg5 {[%clk 0:02:39]} 9. Rxh8 {[%clk 0:02:48]}  Bxh8 {[%clk 0:02:36]} 10. Nxe5 {[%clk 0:02:48]}  Bxe5 {[%clk 0:02:36]} 11. Bd2 {[%clk 0:02:38]}  g4 {[%clk 0:02:35]} 12. Qa4+ {[%clk 0:02:37]}  Bd7 {[%clk 0:02:34]} 13. Qb3 {[%clk 0:02:37]}  Qb6 {[%clk 0:02:32]} 14. Qxb6 {[%clk 0:02:37]}  axb6 {[%clk 0:02:33]} 15. Be2 {[%clk 0:02:31]}  Nf6 {[%clk 0:02:31]} 16. a3 {[%clk 0:02:27]}  O-O-O {[%clk 0:02:30]} 17. O-O-O {[%clk 0:02:27]}  Rh8 {[%clk 0:02:29]} 18. Kc2 {[%clk 0:02:16]}  Rh2 {[%clk 0:02:27]} 19. Rg1 {[%clk 0:02:15]}  Bf5+ {[%clk 0:02:25]} 20. Bd3 {[%clk 0:00:36]}  Bxd3+ {[%clk 0:02:21]} 0-1


[Site "https://www.chess.com"]

[Event "Titled Tuesday Blitz December 27 Early 2022"]
[White "Atakishiyev, Elmar"]
[Black "Xu, Yi"]
[WhiteFideId "13410547"]
[BlackFideId "8605564"]
[WhiteElo "2363"]
[BlackElo "2527"]
[Result "1-0"]
[Round "05"]
[TimeControl "180+2"]
[Date "2022.12.27"]
[WhiteClock "0:00:05"]
[BlackClock "0:00:03"]

1. Nf3 {[%clk 0:03:00]}  d5 {[%clk 0:02:59]} 2. g3 {[%clk 0:03:01]}  Nf6 {[%clk 0:02:59]} 3. Bg2 {[%clk 0:03:01]}  e6 {[%clk 0:03:00]} 4. O-O {[%clk 0:02:57]}  Be7 {[%clk 0:03:00]} 5. d3 {[%clk 0:02:56]}  O-O {[%clk 0:03:00]} 6. Nbd2 {[%clk 0:02:56]}  c5 {[%clk 0:03:00]} 7. e4 {[%clk 0:02:55]}  Nc6 {[%clk 0:03:01]} 8. Qe2 {[%clk 0:02:51]}  b5 {[%clk 0:02:56]} 9. e5 {[%clk 0:02:48]}  Nd7 {[%clk 0:02:54]} 10. Re1 {[%clk 0:02:47]}  a5 {[%clk 0:02:52]} 11. Nf1 {[%clk 0:02:46]}  Ba6 {[%clk 0:02:34]} 12. h4 {[%clk 0:02:45]}  a4 {[%clk 0:02:22]} 13. N1h2 {[%clk 0:02:42]}  Qb6 {[%clk 0:02:18]} 14. h5 {[%clk 0:02:39]}  h6 {[%clk 0:02:17]} 15. Ng4 {[%clk 0:02:39]}  Rfc8 {[%clk 0:02:07]} 16. Bxh6 {[%clk 0:02:07]}  gxh6 {[%clk 0:02:06]} 17. Nxh6+ {[%clk 0:02:02]}  Kg7 {[%clk 0:02:03]} 18. Ng4 {[%clk 0:01:54]}  Rh8 {[%clk 0:01:57]} 19. h6+ {[%clk 0:01:43]}  Kh7 {[%clk 0:01:36]} 20. Nf6+ {[%clk 0:01:34]}  Bxf6 {[%clk 0:01:33]} 21. exf6 {[%clk 0:01:33]}  Rag8 {[%clk 0:01:27]} 22. Qe3 {[%clk 0:01:23]}  Qd8 {[%clk 0:01:26]} 23. Ng5+ {[%clk 0:01:17]}  Rxg5 {[%clk 0:01:25]} 24. Qxg5 {[%clk 0:01:18]}  Qxf6 {[%clk 0:01:26]} 25. Qh5 {[%clk 0:01:06]}  Nd4 {[%clk 0:01:19]} 26. Re3 {[%clk 0:01:03]}  Qg6 {[%clk 0:01:10]} 27. Qd1 {[%clk 0:00:38]}  Nf5 {[%clk 0:00:51]} 28. Rf3 {[%clk 0:00:31]}  Ne5 {[%clk 0:00:40]} 29. Rf4 {[%clk 0:00:31]}  Bb7 {[%clk 0:00:37]} 30. Qe2 {[%clk 0:00:31]}  f6 {[%clk 0:00:34]} 31. Re1 {[%clk 0:00:26]}  b4 {[%clk 0:00:26]} 32. c3 {[%clk 0:00:26]}  a3 {[%clk 0:00:25]} 33. d4 {[%clk 0:00:26]}  bxc3 {[%clk 0:00:15]} 34. dxe5 {[%clk 0:00:26]}  axb2 {[%clk 0:00:14]} 35. exf6 {[%clk 0:00:17]}  Nd4 {[%clk 0:00:14]} 36. Qe5 {[%clk 0:00:06]}  b1=Q {[%clk 0:00:11]} 37. Qc7+ {[%clk 0:00:05]}  Kg8 {[%clk 0:00:10]} 38. f7+ {[%clk 0:00:06]}  Kf8 {[%clk 0:00:03]} 39. Qd6# {[%clk 0:00:05]} 1-0


[Site "https://www.chess.com"]

[Event "Titled Tuesday Blitz December 27 Early 2022"]
[White "Babazada, Khazar"]
[Black "Ovchinnikov, Vsevolod"]
[WhiteFideId "13413554"]
[BlackFideId "24176842"]
[WhiteElo "2474"]
[BlackElo "2426"]
[Result "1-0"]
[Round "05"]
[TimeControl "180+2"]
[Date "2022.12.27"]
[WhiteClock "0:01:09"]
[BlackClock "0:00:02"]

1. e4 {[%clk 0:03:00]}  g6 {[%clk 0:03:00]} 2. d4 {[%clk 0:03:01]}  Bg7 {[%clk 0:03:00]} 3. Nc3 {[%clk 0:03:00]}  a6 {[%clk 0:03:01]} 4. Be3 {[%clk 0:02:58]}  b5 {[%clk 0:03:01]} 5. Qd2 {[%clk 0:02:56]}  d6 {[%clk 0:03:02]} 6. O-O-O {[%clk 0:02:55]}  Nd7 {[%clk 0:03:02]} 7. h4 {[%clk 0:02:51]}  h5 {[%clk 0:03:03]} 8. Nh3 {[%clk 0:02:42]}  Bb7 {[%clk 0:03:03]} 9. f3 {[%clk 0:02:40]}  Rc8 {[%clk 0:03:03]} 10. Kb1 {[%clk 0:02:13]}  c5 {[%clk 0:03:04]} 11. dxc5 {[%clk 0:02:10]}  Nxc5 {[%clk 0:03:05]} 12. Ng5 {[%clk 0:02:03]}  Nd7 {[%clk 0:02:00]} 13. Nd5 {[%clk 0:02:02]}  Ngf6 {[%clk 0:01:55]} 14. Nf4 {[%clk 0:01:57]}  Ne5 {[%clk 0:01:40]} 15. Be2 {[%clk 0:01:54]}  Qc7 {[%clk 0:01:31]} 16. c3 {[%clk 0:01:51]}  Nfd7 {[%clk 0:01:25]} 17. g4 {[%clk 0:01:49]}  hxg4 {[%clk 0:01:07]} 18. fxg4 {[%clk 0:01:49]}  Nc4 {[%clk 0:01:07]} 19. Bxc4 {[%clk 0:01:46]}  Qxc4 {[%clk 0:01:08]} 20. Nd5 {[%clk 0:01:42]}  Bxd5 {[%clk 0:01:03]} 21. exd5 {[%clk 0:01:40]}  Qxg4 {[%clk 0:00:59]} 22. Rdf1 {[%clk 0:01:38]}  Bf6 {[%clk 0:00:46]} 23. Rf4 {[%clk 0:01:32]}  Qh5 {[%clk 0:00:42]} 24. Rhf1 {[%clk 0:01:32]}  Rc4 {[%clk 0:00:37]} 25. Bd4 {[%clk 0:01:32]}  O-O {[%clk 0:00:27]} 26. Qe3 {[%clk 0:01:23]}  Rc7 {[%clk 0:00:18]} 27. Ne4 {[%clk 0:01:21]}  Bxd4 {[%clk 0:00:17]} 28. Qxd4 {[%clk 0:01:22]}  Qe5 {[%clk 0:00:15]} 29. Qe3 {[%clk 0:01:14]}  Qxd5 {[%clk 0:00:07]} 30. h5 {[%clk 0:01:14]}  Qxh5 {[%clk 0:00:06]} 31. Qe1 {[%clk 0:01:12]}  Rc4 {[%clk 0:00:05]} 32. Rh1 {[%clk 0:01:12]}  Qe5 {[%clk 0:00:03]} 33. Qh4 {[%clk 0:01:10]}  Nc5 {[%clk 0:00:02]} 34. Qh7# {[%clk 0:01:09]} 1-0


[Site "https://www.chess.com"]

[Event "Titled Tuesday Blitz December 27 Early 2022"]
[White "Baches Garcia, Guillermo"]
[Black "Kovacevic, Radmila"]
[WhiteFideId "2209764"]
[BlackFideId "933171"]
[WhiteElo "2327"]
[BlackElo "2106"]
[Result "1-0"]
[Round "05"]
[TimeControl "180+2"]
[Date "2022.12.27"]
[WhiteClock "0:00:18"]
[BlackClock "0:00:07"]

1. e4 {[%clk 0:02:59]}  e5 {[%clk 0:02:59]} 2. Nf3 {[%clk 0:02:59]}  f5 {[%clk 0:02:59]} 3. d3 {[%clk 0:02:56]}  Nc6 {[%clk 0:02:57]} 4. Be2 {[%clk 0:02:55]}  Nf6 {[%clk 0:02:56]} 5. Nbd2 {[%clk 0:02:54]}  d5 {[%clk 0:02:56]} 6. O-O {[%clk 0:02:49]}  Bc5 {[%clk 0:02:47]} 7. exd5 {[%clk 0:02:45]}  Qxd5 {[%clk 0:02:34]} 8. Re1 {[%clk 0:02:34]}  Be6 {[%clk 0:02:32]} 9. Nb3 {[%clk 0:02:24]}  Bb6 {[%clk 0:02:31]} 10. c4 {[%clk 0:02:24]}  Qd7 {[%clk 0:02:24]} 11. c5 {[%clk 0:02:00]}  Bxb3 {[%clk 0:02:22]} 12. Qxb3 {[%clk 0:02:00]}  Bxc5 {[%clk 0:02:22]} 13. Qxb7 {[%clk 0:01:54]}  Rb8 {[%clk 0:02:20]} 14. Qa6 {[%clk 0:01:52]}  Bxf2+ {[%clk 0:01:56]} 15. Kxf2 {[%clk 0:01:45]}  Ng4+ {[%clk 0:01:56]} 16. Kg1 {[%clk 0:01:35]}  O-O {[%clk 0:01:19]} 17. h3 {[%clk 0:01:27]}  Nf6 {[%clk 0:01:18]} 18. Bg5 {[%clk 0:01:18]}  Rxb2 {[%clk 0:01:11]} 19. Bxf6 {[%clk 0:01:06]}  Rxf6 {[%clk 0:01:03]} 20. Rac1 {[%clk 0:01:03]}  h6 {[%clk 0:00:35]} 21. Bf1 {[%clk 0:00:55]}  Kh7 {[%clk 0:00:29]} 22. Qc4 {[%clk 0:00:52]}  Rg6 {[%clk 0:00:22]} 23. Kh1 {[%clk 0:00:48]}  e4 {[%clk 0:00:17]} 24. dxe4 {[%clk 0:00:44]}  f4 {[%clk 0:00:15]} 25. e5 {[%clk 0:00:40]}  Ne7 {[%clk 0:00:13]} 26. Bd3 {[%clk 0:00:27]}  Rxg2 {[%clk 0:00:11]} 27. Bxg6+ {[%clk 0:00:25]}  Rxg6 {[%clk 0:00:12]} 28. e6 {[%clk 0:00:21]}  Qc8 {[%clk 0:00:08]} 29. Qe4 {[%clk 0:00:21]}  Qf8 {[%clk 0:00:06]} 30. Rg1 {[%clk 0:00:20]}  Nf5 {[%clk 0:00:06]} 31. Rxg6 {[%clk 0:00:19]}  Kxg6 {[%clk 0:00:06]} 32. Nh4+ {[%clk 0:00:19]}  Kg5 {[%clk 0:00:06]} 33. Qxf5+ {[%clk 0:00:18]}  Qxf5 {[%clk 0:00:06]} 34. Nxf5 {[%clk 0:00:19]}  Kf6 {[%clk 0:00:06]} 35. e7 {[%clk 0:00:18]}  Kxf5 {[%clk 0:00:07]} 36. e8=Q {[%clk 0:00:18]} 1-0


[Site "https://www.chess.com"]

[Event "Titled Tuesday Blitz December 27 Early 2022"]
[White "Barbashin, Igor"]
[Black "Sreyas Payyappat"]
[WhiteFideId "4155718"]
[BlackFideId "46674969"]
[WhiteElo "2169"]
[BlackElo "2076"]
[Result "0-1"]
[Round "05"]
[TimeControl "180+2"]
[Date "2022.12.27"]
[WhiteClock "0:01:24"]
[BlackClock "0:02:03"]

1. d4 {[%clk 0:03:00]}  Nf6 {[%clk 0:02:57]} 2. c4 {[%clk 0:03:00]}  c5 {[%clk 0:02:56]} 3. e3 {[%clk 0:02:57]}  e6 {[%clk 0:02:54]} 4. Nf3 {[%clk 0:02:56]}  cxd4 {[%clk 0:02:52]} 5. Nxd4 {[%clk 0:02:54]}  d5 {[%clk 0:02:53]} 6. cxd5 {[%clk 0:02:53]}  exd5 {[%clk 0:02:50]} 7. Nc3 {[%clk 0:02:52]}  Nc6 {[%clk 0:02:47]} 8. Be2 {[%clk 0:02:51]}  Bc5 {[%clk 0:02:43]} 9. Nb3 {[%clk 0:02:47]}  Bb6 {[%clk 0:02:41]} 10. O-O {[%clk 0:02:47]}  O-O {[%clk 0:02:40]} 11. Bf3 {[%clk 0:02:42]}  Be6 {[%clk 0:02:38]} 12. Nb5 {[%clk 0:02:42]}  Ne5 {[%clk 0:02:33]} 13. N5d4 {[%clk 0:02:42]}  Nxf3+ {[%clk 0:02:32]} 14. Qxf3 {[%clk 0:02:41]}  Bg4 {[%clk 0:02:31]} 15. Qg3 {[%clk 0:02:37]}  h5 {[%clk 0:02:23]} 16. h3 {[%clk 0:02:30]}  Ne4 {[%clk 0:02:22]} 17. Qe5 {[%clk 0:02:07]}  Bc7 {[%clk 0:02:20]} 18. Qxc7 {[%clk 0:01:59]}  Qxc7 {[%clk 0:02:19]} 19. hxg4 {[%clk 0:02:00]}  hxg4 {[%clk 0:02:19]} 20. f4 {[%clk 0:01:55]}  gxf3 {[%clk 0:02:18]} 21. Rxf3 {[%clk 0:01:52]}  Rae8 {[%clk 0:02:19]} 22. Nd2 {[%clk 0:01:46]}  Ng5 {[%clk 0:02:17]} 23. Rf5 {[%clk 0:01:38]}  Qg3 {[%clk 0:02:13]} 24. Nf1 {[%clk 0:01:36]}  Qg4 {[%clk 0:02:11]} 25. Nh2 {[%clk 0:01:28]}  Nh3+ {[%clk 0:02:04]} 26. Kf1 {[%clk 0:01:24]}  Qd1# {[%clk 0:02:03]} 0-1


[Site "https://www.chess.com"]

[Event "Titled Tuesday Blitz December 27 Early 2022"]
[White "Belozerov, Andrei"]
[Black "Kvaloy, Aksel Bu"]
[WhiteFideId "4120213"]
[BlackFideId "1528815"]
[WhiteElo "2461"]
[BlackElo "2321"]
[Result "1-0"]
[Round "05"]
[TimeControl "180+2"]
[Date "2022.12.27"]
[WhiteClock "0:00:13"]
[BlackClock "0:00:01"]

1. d4 {[%clk 0:03:00]}  Nf6 {[%clk 0:02:59]} 2. c4 {[%clk 0:02:58]}  e6 {[%clk 0:02:54]} 3. g3 {[%clk 0:02:57]}  d5 {[%clk 0:02:54]} 4. Nf3 {[%clk 0:02:57]}  dxc4 {[%clk 0:02:54]} 5. Bg2 {[%clk 0:02:57]}  c6 {[%clk 0:02:55]} 6. O-O {[%clk 0:02:54]}  b5 {[%clk 0:02:54]} 7. b3 {[%clk 0:02:52]}  cxb3 {[%clk 0:02:53]} 8. Qxb3 {[%clk 0:02:52]}  Bb7 {[%clk 0:02:51]} 9. Rd1 {[%clk 0:02:51]}  Nbd7 {[%clk 0:02:48]} 10. Ne5 {[%clk 0:02:50]}  Nxe5 {[%clk 0:02:47]} 11. dxe5 {[%clk 0:02:49]}  Nd7 {[%clk 0:02:48]} 12. Nc3 {[%clk 0:02:48]}  Qb6 {[%clk 0:02:43]} 13. Ne4 {[%clk 0:02:21]}  Nc5 {[%clk 0:02:26]} 14. Qf3 {[%clk 0:02:11]}  Nxe4 {[%clk 0:02:24]} 15. Qxe4 {[%clk 0:02:10]}  Bc5 {[%clk 0:02:24]} 16. Qg4 {[%clk 0:01:47]}  Bxf2+ {[%clk 0:02:14]} 17. Kf1 {[%clk 0:01:46]}  g6 {[%clk 0:01:47]} 18. Bg5 {[%clk 0:01:42]}  Be3 {[%clk 0:01:29]} 19. Bf6 {[%clk 0:01:39]}  O-O {[%clk 0:01:29]} 20. Rd7 {[%clk 0:01:36]}  Bc8 {[%clk 0:01:26]} 21. Rd6 {[%clk 0:01:33]}  h5 {[%clk 0:01:18]} 22. Qe4 {[%clk 0:01:28]}  Bg1 {[%clk 0:01:14]} 23. Qf3 {[%clk 0:01:12]}  Bb7 {[%clk 0:01:11]} 24. Rad1 {[%clk 0:00:57]}  Rac8 {[%clk 0:01:00]} 25. R1d3 {[%clk 0:00:49]}  Bc5 {[%clk 0:00:46]} 26. Qf4 {[%clk 0:00:47]}  Kh7 {[%clk 0:00:46]} 27. Be4 {[%clk 0:00:42]}  Bxd6 {[%clk 0:00:40]} 28. Rxd6 {[%clk 0:00:40]}  c5 {[%clk 0:00:04]} 29. Rxb6 {[%clk 0:00:37]}  Bxe4 {[%clk 0:00:05]} 30. Rxb5 {[%clk 0:00:28]}  Bd5 {[%clk 0:00:05]} 31. Rb2 {[%clk 0:00:18]}  c4 {[%clk 0:00:05]} 32. Qd4 {[%clk 0:00:16]}  Rc7 {[%clk 0:00:05]} 33. Rc2 {[%clk 0:00:15]}  Rfc8 {[%clk 0:00:05]} 34. Rc3 {[%clk 0:00:15]}  Rb7 {[%clk 0:00:04]} 35. e4 {[%clk 0:00:14]}  Bc6 {[%clk 0:00:02]} 36. Kf2 {[%clk 0:00:15]}  Rbc7 {[%clk 0:00:02]} 37. Rxc4 {[%clk 0:00:14]}  Bb7 {[%clk 0:00:02]} 38. Rxc7 {[%clk 0:00:13]}  Rxc7 {[%clk 0:00:03]} 39. Qd8 {[%clk 0:00:14]}  Rc8 {[%clk 0:00:02]} 40. Qe7 {[%clk 0:00:14]}  Kg8 {[%clk 0:00:01]} 41. Qxb7 {[%clk 0:00:13]}  Rc2+ {[%clk 0:00:02]} 42. Ke3 {[%clk 0:00:13]}  Rc3+ {[%clk 0:00:03]} 43. Kf4 {[%clk 0:00:13]}  g5+ {[%clk 0:00:01]} 44. Kxg5 {[%clk 0:00:13]} 1-0


[Site "https://www.chess.com"]